bitfinex/quotes_SOLUSD_20220101
["timestamp","ask_amount","ask_price","bid_price","bid_amount"]
[1641033117151,8.7417,171.66,171.54,0.26]
[1641033117552,9.5017,171.66,171.5,1.3565]
[1641033117750,9.5017,171.66,171.47,5.98]
[1641033117950,2.69169368,171.65,171.47,5.98]
[1641033118151,8.7465,171.57,171.47,5.98]
[1641033118350,9.2465,171.57,171.42,0.14584504]
[1641033118555,9.5065,171.57,171.42,0.14584504]
[1641033118953,1.42669368,171.56,171.42,0.14584504]
[1641033119154,8.7494,171.52,171.42,0.14584504]
[1641033119356,9.2494,171.52,171.42,0.14584504]
[1641033119559,9.5094,171.52,171.42,0.14584504]
[1641033119760,9.2494,171.52,171.42,0.14584504]
[1641033120163,8.7494,171.52,171.42,0.14584504]
[1641033120357,1.3596,171.56,171.42,0.14584504]
[1641033120556,1.6196,171.56,171.42,6.56384504]
[1641033120959,1.49214455,171.56,171.42,6.56384504]
[1641033121357,1.49214455,171.56,171.49,8.7445]
[1641033121558,2.78664455,171.6,171.49,32.69077676]
[1641033121754,1.49214455,171.6,171.49,32.43077676]
[1641033121957,1.49214455,171.6,171.49,32.69077676]
[1641033122155,8.745,171.61,171.49,32.43077676]
[1641033122156,1.49214455,171.61,171.49,32.43077676]
[1641033122357,1.49214455,171.61,171.49,23.68627676]
[1641033122559,8.7464,171.58,171.47,8.7455]
[1641033122757,8.7464,171.58,171.43,78.2202]
[1641033122957,9.0064,171.58,171.42,0.14584504]
[1641033123357,9.5064,171.58,171.42,0.14584504]
[1641033123856,1.49214455,171.57,171.42,0.14584504]
[1641033124059,10.49914455,171.57,171.42,8.89414504]
[1641033124256,1.49214455,171.57,171.42,8.89414504]
[1641033124456,0.5,171.57,171.43,72.9349]
[1641033124861,1.49214455,171.58,171.43,73.6949]
[1641033125063,1.3368,171.6,171.48,8.7453]
[1641033125064,8.7461,171.59,171.48,8.7453]
[1641033125259,1.49214455,171.6,171.49,31.66668423]
[1641033125461,0.5,171.59,171.49,31.66668423]
[1641033125659,1.49214455,171.6,171.49,31.92668423]
[1641033126362,1.49214455,171.61,171.49,40.67138423]
[1641033127362,1.99214455,171.61,171.49,40.67138423]
[1641033127563,10.49704455,171.61,171.49,40.67138423]
[1641033127762,9.5049,171.61,171.49,40.67138423]
[1641033128165,0.5,171.61,171.49,40.67138423]
[1641033128366,1.49214455,171.62,171.54,8.7422]
[1641033128565,1.49214455,171.62,171.54,0.26]
[1641033129064,8.7409,171.69,171.54,0.26]
[1641033129268,8.7409,171.69,171.5,81.1236]
[1641033129564,8.7409,171.69,171.58,8.7402]
[1641033129767,8.74,171.71,171.58,8.7402]
[1641033129966,2.5807,171.72,171.58,8.7402]
[1641033130171,10.55703442,171.71,171.5,3.321]
[1641033130364,1.42669368,171.7,171.5,3.321]
[1641033130564,1.68669368,171.7,171.5,2.821]
[1641033130764,29.1429,171.69,171.5,1.5524]
[1641033130964,29.1429,171.69,171.51,22.81800677]
[1641033130965,8.7433,171.64,171.51,22.81800677]
[1641033131164,8.7433,171.64,171.5,0.76]
[1641033131366,9.2433,171.64,171.48,0.26]
[1641033131565,9.2433,171.64,171.45,79.7897]
[1641033131765,8.7433,171.64,171.45,80.2897]
[1641033131970,10.99544455,171.64,171.45,80.2897]
[1641033132172,10.49544455,171.64,171.45,79.5297]
[1641033132371,10.99544455,171.64,171.45,79.5297]
[1641033132673,1.49214455,171.61,171.42,0.14584504]
[1641033132872,1.99214455,171.61,171.42,0.14584504]
[1641033133071,1.42669368,171.6,171.42,0.14584504]
[1641033133271,1.49214455,171.57,171.42,0.14584504]
[1641033133474,31.41524455,171.57,171.42,0.14584504]
[1641033133871,8.749,171.53,171.42,0.14584504]
[1641033134471,30.91524455,171.57,171.42,8.7481]
[1641033134671,31.41524455,171.57,171.42,8.7481]
[1641033134871,31.41524455,171.57,171.4,31.67891315]
[1641033134872,1.49214455,171.56,171.4,31.67891315]
[1641033135074,1.75214455,171.56,171.4,31.67891315]
[1641033135275,2.25214455,171.56,171.4,31.17891315]
[1641033136072,0.76,171.56,171.4,31.43891315]
[1641033136272,0.26,171.56,171.4,31.43891315]
[1641033136471,31.41524455,171.57,171.4,31.43891315]
[1641033136672,2.25214455,171.57,171.43,8.7477]
[1641033136873,3.03603261,171.55,171.44,30.12121492]
[1641033137071,3.03603261,171.55,171.44,30.38121492]
[1641033137272,3.03603261,171.55,171.44,0.26]
[1641033137672,3.03603261,171.55,171.39,73.16961956]
[1641033137875,3.03603261,171.55,171.39,73.92961956]
[1641033138074,11.78403261,171.55,171.42,8.7482]
[1641033138316,11.78403261,171.55,171.43,28.08944597]
[1641033138516,12.04403261,171.55,171.43,28.34944597]
[1641033138710,12.04403261,171.55,171.43,28.84944597]
[1641033138911,12.04403261,171.55,171.43,0.5]
[1641033139311,12.04403261,171.55,171.42,0.5]
[1641033139518,12.54403261,171.55,171.39,73.16961956]
[1641033140013,12.54403261,171.55,171.4,30.95560912]
[1641033140422,12.54403261,171.55,171.41,8.7486]
[1641033140614,12.04403261,171.55,171.41,8.7486]
[1641033141415,12.04403261,171.55,171.41,9.2486]
[1641033141615,12.04403261,171.55,171.41,9.5086]
[1641033141816,12.28403261,171.55,171.41,9.5086]
[1641033142019,12.04403261,171.55,171.41,9.5086]
[1641033142216,12.54403261,171.55,171.41,9.5086]
[1641033142616,12.28403261,171.55,171.41,9.5086]
[1641033142816,3.03603261,171.55,171.41,9.0086]
[1641033143018,3.29603261,171.55,171.41,9.5086]
[1641033143221,3.29603261,171.55,171.41,9.2486]
[1641033143418,3.79603261,171.55,171.39,9.04101956]
[1641033143618,3.79603261,171.55,171.39,9.54101956]
[1641033143917,3.29603261,171.55,171.39,9.54101956]
[1641033144216,3.29603261,171.55,171.4,22.75416436]
[1641033144418,3.29603261,171.55,171.44,8.7472]
[1641033144616,3.29603261,171.55,171.44,0.26]
[1641033145018,3.79603261,171.55,171.41,72.9501]
[1641033145219,3.79603261,171.55,171.41,0.5]
[1641033145622,12.54383261,171.55,171.41,0.5]
[1641033145919,12.04383261,171.55,171.4,23.25416436]
[1641033146119,12.04383261,171.55,171.41,77.365]
[1641033146319,12.54383261,171.55,171.41,77.365]
[1641033146520,12.04383261,171.55,171.41,77.365]
[1641033146722,12.04383261,171.55,171.41,86.1136]
[1641033146920,12.54383261,171.55,171.41,86.6136]
[1641033147120,12.54383261,171.55,171.41,86.1136]
[1641033147320,12.54383261,171.55,171.41,77.365]
[1641033147521,12.54383261,171.55,171.41,77.865]
[1641033147920,12.04383261,171.55,171.41,77.365]
[1641033149022,12.28383261,171.55,171.41,78.125]
[1641033149453,3.53603261,171.55,171.41,86.8736]
[1641033149625,3.03603261,171.55,171.41,86.8736]
[1641033152628,3.03603261,171.55,171.41,86.3736]
[1641033152828,3.03603261,171.55,171.41,86.8736]
[1641033156435,3.03603261,171.55,171.41,86.1136]
[1641033156632,3.03603261,171.55,171.41,86.6136]
[1641033157034,3.29603261,171.55,171.41,86.6136]
[1641033157233,3.29603261,171.55,171.41,86.1136]
[1641033158035,3.03603261,171.55,171.41,86.6136]
[1641033158244,3.29603261,171.55,171.41,86.6136]
[1641033158442,3.03603261,171.55,171.41,86.6136]
[1641033159038,3.03603261,171.55,171.41,86.8736]
[1641033159236,3.03603261,171.55,171.41,86.6136]
[1641033159437,3.03603261,171.55,171.41,86.1136]
[1641033159638,3.03603261,171.55,171.41,86.6136]
[1641033159838,3.03603261,171.55,171.41,86.1136]
[1641033160242,3.29603261,171.55,171.41,86.1136]
[1641033160437,3.03603261,171.55,171.41,86.6136]
[1641033160639,3.03603261,171.55,171.41,86.8736]
[1641033162140,3.03603261,171.55,171.41,86.6136]
[1641033162541,3.29603261,171.55,171.41,86.6136]
[1641033162740,3.03603261,171.55,171.41,86.6136]
[1641033163542,3.29603261,171.55,171.41,86.6136]
[1641033163741,1.49214455,171.58,171.41,86.6136]
[1641033163940,1.49214455,171.59,171.42,1.3249]
[1641033164141,1.49214455,171.59,171.5,8.7434]
[1641033164342,1.49214455,171.59,171.51,25.16704919]
[1641033164564,1.49214455,171.59,171.51,25.42704919]
[1641033164766,1.49214455,171.59,171.51,0.26]
[1641033165165,2.99061698,171.62,171.48,72.9176]
[1641033165166,1.49214455,171.61,171.48,72.9176]
[1641033165366,1.49214455,171.61,171.49,1.2911]
[1641033165567,1.49214455,171.61,171.51,8.7436]
[1641033165968,10.23594455,171.62,171.51,9.0036]
[1641033166868,10.73594455,171.62,171.49,1.2911]
[1641033167068,10.99594455,171.62,171.49,10.2958]
[1641033167269,12.42263823,171.62,171.49,9.0047]
[1641033167775,1.49214455,171.59,171.49,0.26]
[1641033167970,1.75214455,171.59,171.48,26.86796957]
[1641033168771,1.49214455,171.59,171.48,26.86796957]
[1641033169170,1.49214455,171.59,171.52,8.7434]
[1641033169571,1.99214455,171.62,171.48,26.60796957]
[1641033170172,2.25214455,171.62,171.48,26.60796957]
[1641033170373,8.7458,171.59,171.48,35.35316957]
[1641033170576,9.0058,171.59,171.48,35.35316957]
[1641033170775,10.49794455,171.59,171.48,35.35316957]
[1641033170973,10.49794455,171.59,171.48,9.0052]
[1641033171179,10.49794455,171.59,171.45,74.5728]
[1641033171380,10.99794455,171.59,171.45,76.1749]
[1641033171783,10.23794455,171.59,171.45,76.1749]
[1641033171974,10.49794455,171.59,171.46,26.84526398]
[1641033172376,9.0058,171.59,171.46,27.10526398]
[1641033172975,9.0058,171.59,171.46,27.60526398]
[1641033173179,10.49794455,171.59,171.46,27.60526398]
[1641033173581,10.49794455,171.59,171.49,8.745]
[1641033173780,10.49794455,171.59,171.5,26.69752288]
[1641033174378,1.75214455,171.59,171.5,26.69752288]
[1641033174582,1.49214455,171.59,171.5,26.95752288]
[1641033174778,1.49214455,171.59,171.5,35.70182288]
[1641033175380,1.49214455,171.6,171.5,35.70182288]
[1641033175980,1.75214455,171.6,171.5,35.70182288]
[1641033176191,1.75214455,171.6,171.47,1.2825]
[1641033176385,10.49694455,171.6,171.47,1.5425]
[1641033177083,10.49694455,171.6,171.47,28.35403505]
[1641033177283,1.49214455,171.59,171.47,28.35403505]
[1641033177484,8.7459,171.58,171.47,37.10013505]
[1641033177885,9.0059,171.58,171.47,37.10013505]
[1641033178083,1.49214455,171.57,171.47,37.10013505]
[1641033178582,10.49804455,171.58,171.47,37.10013505]
[1641033178782,10.49804455,171.58,171.45,8.7469]
[1641033178983,10.99804455,171.58,171.44,1.2699]
[1641033179184,10.99804455,171.58,171.43,72.0523]
[1641033179383,10.99804455,171.58,171.4,108.8747]
[1641033179582,8.7477,171.55,171.41,1.3279]
[1641033179783,10.23984455,171.55,171.42,31.16969293]
[1641033179984,10.49984455,171.55,171.42,31.42969293]
[1641033180587,10.49984455,171.55,171.43,8.7482]
[1641033180784,10.23984455,171.55,171.43,9.0082]
[1641033180986,1.49214455,171.55,171.43,9.0082]
[1641033181186,1.49214455,171.56,171.43,9.0082]
[1641033181385,1.49214455,171.56,171.44,1.2896]
[1641033181586,1.49214455,171.56,171.47,8.7459]
[1641033181789,1.49214455,171.56,171.44,1.5496]
[1641033181790,1.49214455,171.56,171.44,2.0496]
[1641033182290,1.49214455,171.57,171.44,2.0496]
[1641033182487,1.49214455,171.57,171.44,0.26]
[1641033182688,1.49214455,171.57,171.46,8.7462]
[1641033182890,1.49214455,171.59,171.46,31.97503104]
[1641033183088,1.75214455,171.59,171.46,32.23503104]
[1641033183290,8.7467,171.56,171.46,32.23503104]
[1641033183690,8.7467,171.56,171.46,31.97503104]
[1641033184092,1.49214455,171.57,171.46,31.97503104]
[1641033185092,1.49214455,171.57,171.46,32.23503104]
[1641033185292,1.49214455,171.57,171.46,111.73903104]
[1641033185693,1.99214455,171.59,171.46,111.73903104]
[1641033185893,1.99214455,171.59,171.46,32.23503104]
[1641033186094,2.25214455,171.59,171.46,32.23503104]
[1641033186293,8.7462,171.57,171.46,32.23503104]
[1641033186493,1.49214455,171.57,171.46,32.23503104]
[1641033186897,1.49214455,171.57,171.46,32.73503104]
[1641033187295,1.49214455,171.59,171.46,32.73503104]
[1641033187897,11.57664455,171.6,171.46,32.73503104]
[1641033188097,11.57664455,171.6,171.47,1.2801]
[1641033188298,11.57664455,171.6,171.5,8.7446]
[1641033188496,11.57664455,171.6,171.51,26.73438444]
[1641033188696,1.49214455,171.59,171.51,26.73438444]
[1641033188896,1.49214455,171.59,171.51,26.99438444]
[1641033189299,1.49214455,171.58,171.51,26.99438444]
[1641033190821,1.49214455,171.58,171.49,8.7447]
[1641033191120,10.23784455,171.58,171.49,0.26]
[1641033191318,10.49784455,171.58,171.49,0.26]
[1641033191722,10.49784455,171.58,171.47,1.5401]
[1641033192024,10.23784455,171.58,171.48,24.64698463]
[1641033192221,1.49214455,171.56,171.48,24.64698463]
[1641033192418,1.49214455,171.56,171.48,24.90698463]
[1641033192822,1.49214455,171.57,171.48,24.90698463]
[1641033194321,1.49214455,171.57,171.48,24.64698463]
[1641033194622,10.23834455,171.57,171.48,24.64698463]
[1641033194824,1.49214455,171.57,171.48,24.64698463]
[1641033195420,1.49214455,171.57,171.48,25.14698463]
[1641033195823,1.49214455,171.58,171.48,25.40698463]
[1641033196022,1.49214455,171.58,171.49,74.934]
[1641033196422,1.49214455,171.59,171.49,75.694]
[1641033196624,1.49214455,171.59,171.5,1.2662]
[1641033196825,1.49214455,171.59,171.49,75.694]
[1641033197024,1.49214455,171.59,171.49,75.194]
[1641033197624,1.49214455,171.59,171.51,8.7441]
[1641033197824,1.49214455,171.59,171.52,31.9699973]
[1641033198023,1.49214455,171.59,171.52,32.2299973]
[1641033198726,1.49214455,171.59,171.52,40.9734973]
[1641033199527,1.49214455,171.6,171.52,40.9734973]
[1641033200728,1.49214455,171.59,171.52,40.9734973]
[1641033203831,1.49214455,171.6,171.52,40.9734973]
[1641033204831,1.49214455,171.6,171.52,9.0035]
[1641033205033,1.49214455,171.6,171.52,0.26]
[1641033205434,1.49214455,171.6,171.51,9.0041]
[1641033205631,1.49214455,171.59,171.51,9.0041]
[1641033207030,1.49214455,171.6,171.51,8.7441]
[1641033207831,1.49214455,171.59,171.51,8.7441]
[1641033208432,1.49214455,171.59,171.51,9.5041]
[1641033209534,1.49214455,171.61,171.51,9.5041]
[1641033210135,1.49214455,171.61,171.51,9.0041]
[1641033210537,1.99214455,171.61,171.51,9.0041]
[1641033210935,1.49214455,171.61,171.51,9.0041]
[1641033212837,1.49214455,171.6,171.51,9.0041]
[1641033213039,1.49214455,171.6,171.51,8.7441]
[1641033213639,16.80164455,171.6,171.5,8.7447]
[1641033213838,1.49214455,171.58,171.41,78.6012]
[1641033214040,1.49214455,171.58,171.44,59.83909313]
[1641033214439,1.49214455,171.56,171.44,60.33909313]
[1641033214841,1.49214455,171.56,171.49,8.7451]
[1641033215041,1.49214455,171.56,171.49,9.0051]
[1641033215243,1.49214455,171.57,171.49,9.0051]
[1641033216041,1.49214455,171.57,171.49,8.7451]
[1641033216842,1.99214455,171.57,171.49,8.7451]
[1641033217041,1.99214455,171.57,171.48,32.10082338]
[1641033217444,1.99214455,171.57,171.48,32.36082338]
[1641033217644,1.99214455,171.57,171.48,32.10082338]
[1641033218250,1.49214455,171.56,171.48,32.10082338]
[1641033218445,1.99214455,171.56,171.48,32.10082338]
[1641033218646,0.5,171.56,171.48,32.10082338]
[1641033219045,1.99214455,171.57,171.48,32.36082338]
[1641033219248,1.49214455,171.57,171.48,32.36082338]
[1641033219947,1.49214455,171.58,171.48,32.36082338]
[1641033220349,1.49214455,171.58,171.48,32.86082338]
[1641033220546,1.49214455,171.58,171.48,32.36082338]
[1641033221254,1.49214455,171.59,171.48,32.36082338]
[1641033222049,1.49214455,171.59,171.49,1.2629]
[1641033222250,1.49214455,171.59,171.5,8.7447]
[1641033222749,1.49214455,171.59,171.5,9.0047]
[1641033223149,1.49214455,171.58,171.5,9.0047]
[1641033224149,1.49214455,171.59,171.5,9.0047]
[1641033228155,1.49214455,171.6,171.5,9.0047]
[1641033228752,1.49214455,171.59,171.5,9.0047]
[1641033229154,1.49214455,171.59,171.5,9.5047]
[1641033229352,1.49214455,171.59,171.5,9.0047]
[1641033230757,1.49214455,171.6,171.5,9.5047]
[1641033231979,1.49214455,171.6,171.5,9.0047]
[1641033232155,1.49214455,171.59,171.5,9.0047]
[1641033232357,1.49214455,171.59,171.5,8.7447]
[1641033233359,1.49214455,171.58,171.49,8.7453]
[1641033233655,1.49214455,171.58,171.48,98.34512338]
[1641033234257,1.49214455,171.57,171.48,98.34512338]
[1641033234458,1.49214455,171.57,171.48,107.09052338]
[1641033235556,10.23814455,171.57,171.48,107.09052338]
[1641033236658,10.23814455,171.57,171.48,32.10052338]
[1641033237056,1.49214455,171.56,171.48,32.10052338]
[1641033237461,1.49214455,171.56,171.48,8.7454]
[1641033237860,1.49214455,171.56,171.47,8.7462]
[1641033238061,10.23854455,171.56,171.47,8.7462]
[1641033238565,10.23854455,171.56,171.48,28.22145133]
[1641033238961,1.49214455,171.55,171.48,28.22145133]
[1641033239162,1.49214455,171.55,171.48,36.96715133]
[1641033240464,1.49214455,171.57,171.48,36.96715133]
[1641033242666,1.49214455,171.56,171.48,36.96715133]
[1641033243068,1.49214455,171.56,171.44,1.3069]
[1641033243265,2.91883823,171.56,171.45,8.7469]
[1641033243569,11.66533823,171.56,171.45,8.7469]
[1641033243964,1.49214455,171.55,171.45,34.86993628]
[1641033244171,1.49214455,171.55,171.44,8.7477]
[1641033244368,8.7481,171.53,171.44,8.7477]
[1641033244565,10.24024455,171.53,171.44,8.7477]
[1641033244768,10.24024455,171.53,171.42,73.6614]
[1641033245169,10.24024455,171.53,171.42,100.46336281]
[1641033245968,1.49214455,171.52,171.42,100.46336281]
[1641033246270,10.24054455,171.52,171.43,8.7483]
[1641033246566,1.49214455,171.52,171.43,8.7483]
[1641033247295,1.2301,171.54,171.43,8.7483]
[1641033247296,1.49214455,171.53,171.43,8.7483]
[1641033247495,1.49214455,171.53,171.44,1.3077]
[1641033247696,1.49214455,171.53,171.44,10.0553]
[1641033248196,1.49214455,171.53,171.44,8.7476]
[1641033248396,1.49214455,171.52,171.44,8.7476]
[1641033249297,1.49214455,171.52,171.43,8.7483]
[1641033250699,10.24064455,171.52,171.43,8.7483]
[1641033251100,10.24064455,171.52,171.42,82.4101]
[1641033252004,10.24064455,171.52,171.39,0.29161956]
[1641033252207,1.42669368,171.51,171.39,0.29161956]
[1641033252405,8.7525,171.45,171.39,0.29161956]
[1641033252804,10.67919368,171.45,171.39,0.29161956]
[1641033253405,9.2525,171.45,171.39,0.29161956]
[1641033254004,10.74464455,171.45,171.39,0.29161956]
[1641033254605,1.49214455,171.44,171.39,0.29161956]
[1641033254806,10.24524455,171.44,171.39,0.29161956]
[1641033255404,1.49214455,171.44,171.39,0.29161956]
[1641033255806,10.24484455,171.44,171.39,0.29161956]
[1641033256309,8.7527,171.44,171.39,0.29161956]
[1641033256707,9.2527,171.44,171.39,0.29161956]
[1641033256906,10.74484455,171.44,171.39,0.29161956]
[1641033257306,10.24484455,171.44,171.39,0.29161956]
[1641033257506,10.74484455,171.44,171.39,0.29161956]
[1641033257708,10.74484455,171.44,171.33,0.5]
[1641033257908,10.74484455,171.44,171.32,8.7533]
[1641033257909,10.74484455,171.44,171.32,0.5]
[1641033258109,12.17153823,171.44,171.28,1.2943]
[1641033258509,1.49214455,171.41,171.27,74.8296]
[1641033258711,1.49214455,171.41,171.3,8.7542]
[1641033259511,1.49214455,171.41,171.28,31.38887948]
[1641033259512,0.5,171.41,171.28,31.38887948]
[1641033260312,1.49214455,171.42,171.28,31.38887948]
[1641033260313,10.24764455,171.4,171.28,40.14357948]
[1641033260511,1.49214455,171.4,171.28,40.14357948]
[1641033260712,1.49214455,171.4,171.28,40.64357948]
[1641033260912,1.49214455,171.41,171.28,40.64357948]
[1641033261110,1.49214455,171.41,171.28,40.14357948]
[1641033261713,10.24664455,171.41,171.28,40.14357948]
[1641033261913,10.74664455,171.41,171.28,40.14357948]
[1641033262113,10.74664455,171.41,171.27,74.8296]
[1641033262412,10.74664455,171.41,171.26,8.7558]
[1641033262812,1.49214455,171.39,171.26,8.7558]
[1641033263113,8.7566,171.37,171.27,30.96495684]
[1641033263512,9.2566,171.37,171.25,78.461]
[1641033264616,9.2566,171.37,171.26,25.70380566]
[1641033264818,9.2566,171.37,171.26,25.20380566]
[1641033265016,2.80704455,171.38,171.26,25.20380566]
[1641033265820,2.80704455,171.38,171.27,1.3153]
[1641033266217,11.56314455,171.38,171.27,1.3153]
[1641033266417,11.56314455,171.38,171.26,25.20380566]
[1641033266418,12.06314455,171.38,171.26,25.20380566]
[1641033266617,10.071,171.38,171.26,25.20380566]
[1641033266820,10.571,171.38,171.26,25.20380566]
[1641033267018,10.571,171.38,171.25,78.961]
[1641033267217,12.06314455,171.38,171.25,78.961]
[1641033268017,8.7583,171.34,171.25,78.961]
[1641033268519,9.2583,171.34,171.13,1.3325]
[1641033268718,73.6848,171.33,171.13,79.8804]
[1641033268919,76.7513,171.33,171.14,1.2979]
[1641033269118,76.7513,171.33,171.15,29.16007662]
[1641033269320,1.49214455,171.3,171.15,29.16007662]
[1641033269517,1.49214455,171.3,171.15,37.92147662]
[1641033269718,1.99214455,171.3,171.15,37.92147662]
[1641033269918,1.49214455,171.3,171.16,1.3471]
[1641033270121,1.49214455,171.3,171.16,8.7451]
[1641033270317,1.49214455,171.31,171.16,9.2451]
[1641033270519,1.49214455,171.31,171.17,72.0286]
[1641033271019,1.49214455,171.32,171.17,72.5286]
[1641033271220,1.49214455,171.32,171.18,1.3596]
[1641033271419,1.49214455,171.32,171.19,26.24979698]
[1641033271720,1.99214455,171.33,171.19,26.24979698]
[1641033272120,10.25134455,171.33,171.19,26.24979698]
[1641033272320,10.75134455,171.33,171.19,26.24979698]
[1641033272621,10.75134455,171.33,171.19,27.54189698]
[1641033273318,8.7603,171.3,171.19,27.54189698]
[1641033273920,1.49214455,171.31,171.19,27.54189698]
[1641033274419,1.49214455,171.31,171.19,36.80069698]
[1641033274622,1.49214455,171.34,171.19,28.04189698]
[1641033275219,1.49214455,171.32,171.19,28.04189698]
[1641033275625,10.25154455,171.32,171.19,28.04189698]
[1641033275822,1.49214455,171.32,171.19,28.04189698]
[1641033276421,1.2736,171.33,171.19,28.04189698]
[1641033276620,1.2736,171.33,171.19,36.80079698]
[1641033277430,1.49214455,171.34,171.19,36.80079698]
[1641033277633,1.49214455,171.34,171.2,1.42669368]
[1641033277832,1.49214455,171.34,171.27,8.7544]
[1641033278032,1.49214455,171.34,171.28,24.38690225]
[1641033278432,1.49214455,171.34,171.28,24.88690225]
[1641033279034,1.49214455,171.38,171.28,33.64140225]
[1641033279635,1.49214455,171.4,171.28,33.64140225]
[1641033279935,1.49214455,171.4,171.32,8.7526]
[1641033280133,1.49214455,171.4,171.33,26.79553924]
[1641033281960,1.99214455,171.4,171.33,26.79553924]
[1641033282161,1.99214455,171.4,171.3,79.2241]
[1641033282361,1.42669368,171.39,171.3,77.9746]
[1641033282565,8.7561,171.38,171.25,8.7559]
[1641033282763,10.24824455,171.38,171.25,8.7559]
[1641033283164,10.24824455,171.38,171.26,23.36231991]
[1641033283364,1.49214455,171.38,171.26,23.36231991]
[1641033283564,1.49214455,171.36,171.26,23.36231991]
[1641033283767,1.49214455,171.36,171.27,79.1445]
[1641033284165,1.49214455,171.37,171.27,79.1445]
[1641033285369,1.49214455,171.37,171.27,87.8996]
[1641033286365,1.49214455,171.38,171.27,87.8996]
[1641033286967,1.49214455,171.38,171.27,88.3996]
[1641033287167,1.49214455,171.38,171.27,89.676]
[1641033287579,1.49214455,171.39,171.27,89.676]
[1641033287771,1.49214455,171.39,171.27,89.176]
[1641033287968,10.24774455,171.39,171.27,89.176]
[1641033288169,10.24774455,171.39,171.27,80.4209]
[1641033288570,1.49214455,171.38,171.27,80.4209]
[1641033289073,10.24824455,171.38,171.27,80.4209]
[1641033289270,1.49214455,171.37,171.27,79.1445]
[1641033289972,1.49214455,171.36,171.27,79.1445]
[1641033290577,10.24934455,171.36,171.27,79.1445]
[1641033291475,1.49214455,171.35,171.27,79.1445]
[1641033291995,10.24994455,171.35,171.27,79.1445]
[1641033292376,10.24994455,171.35,171.27,79.4045]
[1641033292881,10.74994455,171.35,171.18,74.6421]
[1641033293075,11.00994455,171.35,171.16,1.2339]
[1641033293275,75.52449368,171.34,171.16,1.2339]
[1641033293475,76.28449368,171.34,171.16,1.2339]
[1641033293677,76.28449368,171.34,171.17,29.10334487]
[1641033293879,77.51569368,171.34,171.17,37.86364487]
[1641033294079,1.49214455,171.32,171.17,37.86364487]
[1641033294477,8.7606,171.29,171.18,78.9621]
[1641033294879,9.5206,171.29,171.18,78.9621]
[1641033295080,9.0206,171.29,171.18,78.9621]
[1641033295281,8.7606,171.29,171.18,78.9621]
[1641033295680,10.25214455,171.31,171.18,78.9621]
[1641033296080,10.25214455,171.31,171.18,79.2221]
[1641033296379,8.76,171.31,171.18,79.2221]
[1641033296980,9.52,171.31,171.18,78.9621]
[1641033297182,9.52,171.31,171.17,29.10334487]
[1641033298180,1.49214455,171.3,171.17,29.10334487]
[1641033298384,8.7609,171.29,171.18,79.5186]
[1641033298582,9.0209,171.29,171.18,79.5186]
[1641033298983,8.7609,171.29,171.18,79.5186]
[1641033299184,1.49214455,171.31,171.18,79.5186]
[1641033299808,10.25224455,171.31,171.18,88.2784]
[1641033300008,11.01224455,171.31,171.18,89.8459]
[1641033300715,10.75224455,171.31,171.18,89.8459]
[1641033300912,1.99214455,171.31,171.18,89.8459]
[1641033301310,1.49214455,171.33,171.18,90.3459]
[1641033301510,1.49214455,171.33,171.18,89.8459]
[1641033301712,1.99214455,171.33,171.18,90.3459]
[1641033302310,1.99214455,171.33,171.18,89.8459]
[1641033302610,1.49214455,171.32,171.18,89.5859]
[1641033302911,1.99214455,171.32,171.18,89.5859]
[1641033304114,1.49214455,171.31,171.18,89.5859]
[1641033304513,1.99214455,171.31,171.18,90.3459]
[1641033304713,1.49214455,171.31,171.18,90.3459]
[1641033305312,1.49214455,171.36,171.18,90.3459]
[1641033305812,1.99214455,171.36,171.18,90.3459]
[1641033306015,0.5,171.36,171.23,8.7569]
[1641033306212,0.5,171.36,171.25,24.17362397]
[1641033306412,1.49214455,171.37,171.25,24.17362397]
[1641033306413,1.99214455,171.37,171.25,24.17362397]
[1641033307016,2.25214455,171.37,171.25,24.17362397]
[1641033307415,1.49214455,171.34,171.25,24.17362397]
[1641033307616,8.7585,171.33,171.25,24.17362397]
[1641033308016,9.5185,171.33,171.25,24.17362397]
[1641033308421,9.5185,171.33,171.2,78.0559]
[1641033308620,9.5185,171.33,171.2,78.3159]
[1641033309018,11.01064455,171.33,171.2,78.3159]
[1641033309418,11.01064455,171.33,171.21,25.74360217]
[1641033310518,10.75064455,171.33,171.21,26.00360217]
[1641033310724,1.49214455,171.33,171.21,34.50170217]
[1641033311019,3.67883823,171.33,171.21,25.74360217]
[1641033311426,1.49214455,171.32,171.21,25.74360217]